{"text_format":"1","workbook":"xlsx","n_sheets":3,"sheets":["كشاف","الجدول","استمارة الحصص"],"not_rendered":{"charts":0,"images":0,"macros":1,"external_links":1,"defined_names":6,"comments":0,"pivot_tables":0},"unopened":[],"bounds":{"document_bytes":16777216,"sheet_cells":100000,"rows_first":2000,"rows_last":500,"rows_between":2000,"halvings":0,"cell_chars":16384,"cell_head_chars":4096},"cells_cut":0,"cells_raw":0,"read":"whole","date_system":"1900"}

{"sheet":"كشاف","index":0,"n_rows":75,"n_cols":167,"rows_kept":75,"cut":false,"hidden":false,"merged":[[0,21,0,29],[1,38,2,38],[0,30,0,38],[1,47,2,47],[0,39,0,47],[1,56,2,56],[0,48,0,56],[1,11,2,11],[0,3,0,11],[1,17,2,17],[1,18,2,18],[1,19,2,19],[1,51,2,51],[1,52,2,52],[1,44,2,44],[1,45,2,45],[1,46,2,46],[1,30,2,30],[1,31,2,31],[1,32,2,32],[1,33,2,33],[1,34,2,34],[1,35,2,35],[1,10,2,10],[1,2,2,2],[27,2,28,2],[31,2,32,2],[29,2,30,2],[35,2,36,2],[1,36,2,36],[1,48,2,48],[1,49,2,49],[1,50,2,50],[1,21,2,21],[1,22,2,22],[1,23,2,23],[1,24,2,24],[1,25,2,25],[1,26,2,26],[1,8,2,8],[1,9,2,9],[25,2,26,2],[1,37,2,37],[1,39,2,39],[1,40,2,40],[1,41,2,41],[1,42,2,42],[1,43,2,43],[1,27,2,27],[1,28,2,28],[1,20,2,20],[1,29,2,29],[1,12,2,12],[1,13,2,13],[1,14,2,14],[1,15,2,15],[1,16,2,16],[1,3,2,3],[1,4,2,4],[1,5,2,5],[1,6,2,6],[1,7,2,7],[0,12,0,20],[324,1,325,1],[324,2,325,2],[326,1,327,1],[326,2,327,2],[318,1,319,1],[318,2,319,2],[320,1,321,1],[320,2,321,2],[322,1,323,1],[322,2,323,2],[312,1,313,1],[312,2,313,2],[314,1,315,1],[314,2,315,2],[316,1,317,1],[316,2,317,2],[306,1,307,1],[306,2,307,2],[308,1,309,1],[308,2,309,2],[310,1,311,1],[310,2,311,2],[300,1,301,1],[300,2,301,2],[302,1,303,1],[302,2,303,2],[304,1,305,1],[304,2,305,2],[294,1,295,1],[294,2,295,2],[296,1,297,1],[296,2,297,2],[298,1,299,1],[298,2,299,2],[288,1,289,1],[288,2,289,2],[290,1,291,1],[290,2,291,2],[292,1,293,1],[292,2,293,2],[280,10,281,10],[282,1,283,1],[282,2,283,2],[284,1,285,1],[284,2,285,2],[286,1,287,1],[286,2,287,2],[280,4,281,4],[280,5,281,5],[280,6,281,6],[280,7,281,7],[280,8,281,8],[280,9,281,9],[268,1,269,1],[268,2,269,2],[270,1,271,1],[270,2,271,2],[280,2,281,2],[280,3,281,3],[262,1,263,1],[262,2,263,2],[264,1,265,1],[264,2,265,2],[266,1,267,1],[266,2,267,2],[256,1,257,1],[256,2,257,2],[258,1,259,1],[258,2,259,2],[260,1,261,1],[260,2,261,2],[250,1,251,1],[250,2,251,2],[252,1,253,1],[252,2,253,2],[254,1,255,1],[254,2,255,2],[244,1,245,1],[244,2,245,2],[246,1,247,1],[246,2,247,2],[248,1,249,1],[248,2,249,2],[238,1,239,1],[238,2,239,2],[240,1,241,1],[240,2,241,2],[242,1,243,1],[242,2,243,2],[232,1,233,1],[232,2,233,2],[234,1,235,1],[234,2,235,2],[236,1,237,1],[236,2,237,2],[224,10,225,10],[226,1,227,1],[226,2,227,2],[228,1,229,1],[228,2,229,2],[230,1,231,1],[230,2,231,2],[224,4,225,4],[224,5,225,5],[224,6,225,6],[224,7,225,7],[224,8,225,8],[224,9,225,9],[212,1,213,1],[212,2,213,2],[214,1,215,1],[214,2,215,2],[224,2,225,2],[224,3,225,3],[206,1,207,1],[206,2,207,2],[208,1,209,1],[208,2,209,2],[210,1,211,1],[210,2,211,2],[200,1,201,1],[200,2,201,2],[202,1,203,1],[202,2,203,2],[204,1,205,1],[204,2,205,2],[194,1,195,1],[194,2,195,2],[196,1,197,1],[196,2,197,2],[198,1,199,1],[198,2,199,2],[188,1,189,1],[188,2,189,2],[190,1,191,1],[190,2,191,2],[192,1,193,1],[192,2,193,2],[182,2,183,2],[184,2,185,2],[186,2,187,2],[168,10,169,10],[170,2,171,2],[172,2,173,2],[174,2,175,2],[168,4,169,4],[168,5,169,5],[168,6,169,6],[168,9,169,9],[168,7,169,7],[168,8,169,8],[156,2,157,2],[158,2,159,2],[168,2,169,2],[168,3,169,3],[152,2,153,2],[154,2,155,2],[176,2,177,2],[178,2,179,2],[180,2,181,2],[138,2,139,2],[128,2,129,2],[130,2,131,2],[132,2,133,2],[146,2,147,2],[148,2,149,2],[150,2,151,2],[140,2,141,2],[142,2,143,2],[144,2,145,2],[124,2,125,2],[126,2,127,2],[118,2,119,2],[112,4,113,4],[120,2,121,2],[114,2,115,2],[116,2,117,2],[134,2,135,2],[136,2,137,2],[122,2,123,2],[98,2,99,2],[112,9,113,9],[112,2,113,2],[112,3,113,3],[112,10,113,10],[92,2,93,2],[102,2,103,2],[100,2,101,2],[94,2,95,2],[96,2,97,2],[112,5,113,5],[112,6,113,6],[112,7,113,7],[112,8,113,8],[74,2,75,2],[76,2,77,2],[78,2,79,2],[68,2,69,2],[70,2,71,2],[72,2,73,2],[86,2,87,2],[88,2,89,2],[90,2,91,2],[80,2,81,2],[82,2,83,2],[84,2,85,2],[7,1,8,1],[9,1,10,1],[11,1,12,1],[13,1,14,1],[15,1,16,1],[66,2,67,2],[56,7,57,7],[58,2,59,2],[64,2,65,2],[19,1,20,1],[21,1,22,1],[23,1,24,1],[25,1,26,1],[27,1,28,1],[29,1,30,1],[31,1,32,1],[33,1,34,1],[17,1,18,1],[37,2,38,2],[15,2,16,2],[17,2,18,2],[19,2,20,2],[21,2,22,2],[23,2,24,2],[56,9,57,9],[56,10,57,10],[56,2,57,2],[56,3,57,3],[56,6,57,6],[0,1,0,2],[60,2,61,2],[62,2,63,2],[47,2,48,2],[41,2,42,2],[43,2,44,2],[45,2,46,2],[56,4,57,4],[56,5,57,5],[3,2,4,2],[5,2,6,2],[7,2,8,2],[9,2,10,2],[11,2,12,2],[13,2,14,2],[33,2,34,2],[39,2,40,2],[3,1,4,1],[5,1,6,1],[56,8,57,8],[1,53,2,53],[1,54,2,54],[1,55,2,55],[71,1,72,1],[73,1,74,1],[53,1,54,1],[55,1,56,1],[57,1,58,1],[59,1,60,1],[61,1,62,1],[63,1,64,1],[65,1,66,1],[67,1,68,1],[69,1,70,1],[35,1,36,1],[37,1,38,1],[39,1,40,1],[41,1,42,1],[43,1,44,1],[45,1,46,1],[47,1,48,1],[49,1,50,1],[51,1,52,1]]}
[null,"اليوم",null,"السبت",null,null,null,null,null,null,null,null,"الأحد",null,null,null,null,null,null,null,null,"الأثنين",null,null,null,null,null,null,null,null,"الثلاثاء",null,null,null,null,null,null,null,null,"الأربعاء",null,null,null,null,null,null,null,null,"الخميس"]
[null,"الحصة","رقم الفصل","الأولى","الثانية","الثالثة","الرابعة","الخامسة","السادسة","السابعة","الثامنة","التاسعة","الأولى","الثانية","الثالثة","الرابعة","الخامسة","السادسة","السابعة","الثامنة","التاسعة","الأولى","الثانية","الثالثة","الرابعة","الخامسة","السادسة","السابعة","الثامنة","التاسعة","الأولى","الثانية","الثالثة","الرابعة","الخامسة","السادسة","السابعة","الثامنة","التاسعة","الأولى","الثانية","الثالثة","الرابعة","الخامسة","السادسة","السابعة","الثامنة","التاسعة","الأولى","الثانية","الثالثة","الرابعة","الخامسة","السادسة","السابعة","الثامنة","التاسعة"]
[null,"الفصل",null,null,null,null,null,null,null,null,null,null,null,null,null,null,null,null,null,null,null,null,null,null,null,null,null,null,null,null,null,null,null,null,null,null,null,null,null,null,null,null,null,null,null,null,null,null,null,null,null,null,null,null,null,null,null,null,null,null,"م","الاسم","الوظيفة","المادة","التخصص","النصاب"]
[null,"1/1",null,null,null,null,null,null,null,null,null,null,"حساب","عربي","عربي","عربي","متعدد","E","العاب","متعدد",null,"حساب","عربي","متعدد","E","عربي","عربي","متعدد","عربي",null,"عربي","متعدد","متعدد","عربي","عربي","حساب","حساب","E",null,"حساب","دين","عربي","عربي","حساب","متعدد","توكاتسو","متعدد",null,"العاب","حساب","دين","حساب","متعدد","متعدد","E","متعدد",null,null,{"$f":"B4","v":"1/1"},null,1,"محمد ناجى","خبير","رياضيات","فصل",18]
[null,null,null,null,null,null,null,null,null,null,null,null,"ابوبكر عزت","ابوبكر عزت","ابوبكر عزت","ابوبكر عزت","ابوبكر عزت","ايمان عبدالناصر","نورا كامل","ابوبكر عزت",null,"ابوبكر عزت","ابوبكر عزت","ابوبكر عزت","ايمان عبدالناصر","ابوبكر عزت","ابوبكر عزت","ابوبكر عزت","ابوبكر عزت",null,"ابوبكر عزت","ابوبكر عزت","ابوبكر عزت","ابوبكر عزت","ابوبكر عزت","ابوبكر عزت","ابوبكر عزت","ايمان عبدالناصر",null,"ابوبكر عزت","ابوبكر عزت","ابوبكر عزت","ابوبكر عزت","ابوبكر عزت","ابوبكر عزت","نورا كامل","ابوبكر عزت",null,"نورا كامل","ابوبكر عزت","ابوبكر عزت","ابوبكر عزت","ابوبكر عزت","ابوبكر عزت","ايمان عبدالناصر","ابوبكر عزت",null,null,{"$f":"B5","v":0},null,2,"عطيه","معلم اول أ","رياضيات","فصل",20,null,"اليوم","التاريخ","إجازة","التاريخ","إجازة","التاريخ","إجازة","التاريخ","اجازة","التاريخ","التاريخ",null,null,null,null,null,null,null,null,null,null,null,null,null,null,null,null,null,null,null,null,null,null,null,null,null,null,null,null,null,null,null,null,null,null,null,null,null,"mawad1","fosol1"]
[null,"2/1",null,null,null,null,null,null,null,null,null,null,"عربي","عربي","عربي","عربي","متعدد","حساب","حساب","E",null,"حساب","متعدد","E","عربي","عربي","العاب","متعدد","توكاتسو",null,"E","عربي","عربي","حساب","العاب","متعدد","متعدد","دين",null,"عربي","عربي","متعدد","حساب","حساب","متعدد","E","متعدد",null,"متعدد","عربي","عربي","حساب","متعدد","حساب","متعدد","دين",null,null,"2/1",null,3,"سعيد","معلم اول","عربي ودين","عربي ودين",22,null,"الاحد","10/2",null,"10/9",null,"10/16",null,"10/23",null,"10/30",null,null,null,null,null,null,null,null,null,null,null,null,null,null,null,null,null,null,null,null,null,null,null,null,null,null,null,null,null,null,null,null,null,null,null,null,null,null,"اتصالات ",null,"2 / 1","2 / 2","2 / 3","2 / 4","2 / 5","2 / 6","2 / 7","2 / 8","2 / 9","2 / 10","2 / 11","2 / 12","2 / 13","2 / 14"," 2 / 15","2 / 16","2 / 17","2 / 18","2 / 19","2 / 20","2 / 21"," 2 / 22","3 / 1","3 / 2","3 / 3","3 / 4","3 / 5","3 / 6","3 / 7","3 / 8","3 / 9","3 / 10","3 / 11","3 / 12","3 / 13","3 / 14"," 3 / 15","3 / 16","3 / 17","3 / 18","3 / 19","3 / 20","3 / 21"," 3 / 22","3 / 23","3 / 24","3 / 25","3 / 26"," 3 / 27","3 / 28"]
[null,null,null,null,null,null,null,null,null,null,null,null,"رضا ناجى","رضا ناجى","رضا ناجى","رضا ناجى","رضا ناجى","رضا ناجى","رضا ناجى","ايمان عبدالناصر",null,"رضا ناجى","رضا ناجى","ايمان عبدالناصر","رضا ناجى","رضا ناجى","فاطمه كامل","رضا ناجى","نورا كامل",null,"ايمان عبدالناصر","رضا ناجى","رضا ناجى","رضا ناجى","فاطمه كامل","رضا ناجى","رضا ناجى","رضا ناجى",null,"رضا ناجى","رضا ناجى","رضا ناجى","رضا ناجى","رضا ناجى","رضا ناجى","ايمان عبدالناصر","رضا ناجى",null,"رضا ناجى","رضا ناجى","رضا ناجى","رضا ناجى","رضا ناجى","رضا ناجى","رضا ناجى","رضا ناجى",null,null,0,null,4,"ابوبكر عزت","معلم اول","فصل","فصل",22,null,"الإثنين","10/3",null,"10/10",null,"10/17",null,"10/24",null,"10/31",null,null,null,null,null,null,null,null,null,null,null,null,null,null,null,null,null,null,null,null,null,null,null,null,null,null,null,null,null,null,null,null,null,null,null,null,null,null,"اجهزة "]
[null,"3/1",null,null,null,null,null,null,null,null,null,null,"E","حساب","متعدد","متعدد","عربي","عربي","حساب","متعدد",null,"عربي","E","عربي","عربي","حساب","متعدد","حساب","دين",null,"عربي","حساب","عربي","عربي","متعدد","متعدد","حساب","متعدد",null,"دين","عربي","عربي","متعدد","العاب","حساب","متعدد","E",null,"عربي","عربي","حساب","متعدد","العاب","توكاتسو","متعدد","E",null,null,"3/1",null,5,"ايمان عبدالناصر","معلم اول  ","فصل","فصل",22,null,"الثلاثاء","10/4",null,"10/11",null,"10/18",null,"10/25",null,null,null,null,null,null,null,null,null,null,null,null,null,null,null,null,null,null,null,null,null,null,null,null,null,null,null,null,null,null,null,null,null,null,null,null,null,null,null,null,"اساسيات م"]
[null,null,null,null,null,null,null,null,null,null,null,null,"ايمان عبدالناصر","مصطفى عبدالحميد","مصطفى عبدالحميد","مصطفى عبدالحميد","مصطفى عبدالحميد","مصطفى عبدالحميد","مصطفى عبدالحميد","مصطفى عبدالحميد",null,"مصطفى عبدالحميد","ايمان عبدالناصر","مصطفى عبدالحميد","مصطفى عبدالحميد","مصطفى عبدالحميد","مصطفى عبدالحميد","مصطفى عبدالحميد","مصطفى عبدالحميد",null,"مصطفى عبدالحميد","مصطفى عبدالحميد","مصطفى عبدالحميد","مصطفى عبدالحميد","مصطفى عبدالحميد","مصطفى عبدالحميد","مصطفى عبدالحميد","مصطفى عبدالحميد",null,"مصطفى عبدالحميد","مصطفى عبدالحميد","مصطفى عبدالحميد","مصطفى عبدالحميد","منال جمعه","مصطفى عبدالحميد","مصطفى عبدالحميد","ايمان عبدالناصر",null,"مصطفى عبدالحميد","مصطفى عبدالحميد","مصطفى عبدالحميد","مصطفى عبدالحميد","منال جمعه","عطيه","مصطفى عبدالحميد","ايمان عبدالناصر",null,null,0,null,6,"رضا ناجى","معلم اول  ","عربي ودين","عربي ودين",22,null,"الأربعاء","10/5",null,"10/12",null,"10/19",null,"10/26",null,null,null,null,null,null,null,null,null,null,null,null,null,null,null,null,null,null,null,null,null,null,null,null,null,null,null,null,null,null,null,null,null,null,null,null,null,null,null,null,"الآلات كهربية"]
[null,"1/2",null,null,null,null,null,null,null,null,null,null,"عربي","عربي","دين","حساب","E","العاب","حساب","متعدد",null,"حساب","حساب","عربي","عربي","العاب","متعدد","متعدد","E",null,"حساب","عربي","عربي","متعدد","متعدد","توكاتسو","E","دين",null,"حساب","E","عربي","عربي","عربي","عربي","متعدد","متعدد",null,"حساب","متعدد","متعدد","عربي","عربي","متعدد","حساب","متعدد",null,null,"1/2",null,7,"منال جمعه","معلم اول  ","فصل","فصل",22,null,"الخميس","10/6","ــــ","10/13",null,"10/20",null,"10/27",null,null,null,null,null,null,null,null,null,null,null,null,null,null,null,null,null,null,null,null,null,null,null,null,null,null,null,null,null,null,null,null,null,null,null,null,null,null,null,null,"الكترونيات"]
[null,null,null,null,null,null,null,null,null,null,null,null,"نورا كامل","نورا كامل","منال جمعه","منال جمعه","ايمان عبدالناصر","منال جمعه","منال جمعه","منال جمعه",null,"منال جمعه","منال جمعه","نورا كامل","نورا كامل","منال جمعه","منال جمعه","منال جمعه","ايمان عبدالناصر",null,"منال جمعه","نورا كامل","نورا كامل","منال جمعه","منال جمعه","منال جمعه","ايمان عبدالناصر","منال جمعه",null,"منال جمعه","ايمان عبدالناصر","نورا كامل","نورا كامل","نورا كامل","نورا كامل","منال جمعه","منال جمعه",null,"منال جمعه","منال جمعه","منال جمعه","نورا كامل","نورا كامل","منال جمعه","منال جمعه","منال جمعه",null,null,0,null,8,"فاطمه كامل","معلم اول  ","فصل","فصل",22,null,null,null,null,null,null,null,null,null,null,null,null,null,null,null,null,null,null,null,null,null,null,null,null,null,null,null,null,null,null,null,null,null,null,null,null,null,null,null,null,null,null,null,null,null,null,null,null,null,"أمن صناعى"]
[null,"2/2",null,null,null,null,null,null,null,null,null,null,"حساب","E","دين","عربي","عربي","متعدد","حساب","متعدد",null,"عربي","عربي","دين","حساب","عربي","عربي","متعدد","متعدد",null,"حساب","حساب","E","متعدد","عربي","عربي","توكاتسو","العاب",null,"عربي","عربي","E","متعدد","حساب","متعدد","حساب","متعدد",null,"حساب","عربي","عربي","E","متعدد","العاب","متعدد","متعدد",null,null,"2/2",null,9,"احمد سليمان","معلم اول  ","فصل","فصل",22,null,null,null,null,null,null,null,null,null,null,null,null,null,null,null,null,null,null,null,null,null,null,null,null,null,null,null,null,null,null,null,null,null,null,null,null,null,null,null,null,null,null,null,null,null,null,null,null,null,"أنجليزي"]
[null,null,null,null,null,null,null,null,null,null,null,null,"فاطمه كامل","ايمان عبدالناصر","فاطمه كامل","نورا كامل","نورا كامل","فاطمه كامل","فاطمه كامل","فاطمه كامل",null,"نورا كامل","نورا كامل","فاطمه كامل","فاطمه كامل","نورا كامل","نورا كامل","فاطمه كامل","فاطمه كامل",null,"فاطمه كامل","فاطمه كامل","ايمان عبدالناصر","فاطمه كامل","نورا كامل","نورا كامل","فاطمه كامل","فاطمه كامل",null,"نورا كامل","نورا كامل","ايمان عبدالناصر","فاطمه كامل","فاطمه كامل","فاطمه كامل","فاطمه كامل","فاطمه كامل",null,"فاطمه كامل","نورا كامل","نورا كامل","ايمان عبدالناصر","فاطمه كامل","فاطمه كامل","فاطمه كامل","فاطمه كامل",null,null,0,null,10,"نورا كامل","معلم اول  ","فصل","فصل",22,null,null,null,null,null,null,null,null,null,null,null,null,null,null,null,null,null,null,null,null,null,null,null,null,null,null,null,null,null,null,null,null,null,null,null,null,null,null,null,null,null,null,null,null,null,null,null,null,null,"أنشطة فنية"]
[null,"3/2",null,null,null,null,null,null,null,null,null,null,"حساب","حساب","متعدد","E","عربي","عربي","دين","متعدد",null,"عربي","حساب","دين","عربي","عربي","متعدد","E","متعدد",null,"حساب","E","متعدد","عربي","عربي","توكاتسو","متعدد","متعدد",null,"عربي","حساب","عربي","عربي","حساب","العاب","متعدد","متعدد",null,"حساب","E","حساب","العاب","عربي","عربي","متعدد","متعدد",null,null,"3/2",null,11,"محمود عبدالهادى","معلم   ","عربي ودين","فصل",24,null,null,null,null,null,null,null,null,null,null,null,null,null,null,null,null,null,null,null,null,null,null,null,null,null,null,null,null,null,null,null,null,null,null,null,null,null,null,null,null,null,null,null,null,null,null,null,null,null,"تحكم الكترونى"]
[null,null,null,null,null,null,null,null,null,null,null,null,"احمد سليمان","احمد سليمان","احمد سليمان","ايمان عبدالناصر","احمد سليمان","احمد سليمان","احمد سليمان","احمد سليمان",null,"احمد سليمان","احمد سليمان","احمد سليمان","احمد سليمان","احمد سليمان","احمد سليمان","ايمان عبدالناصر","احمد سليمان",null,"احمد سليمان","ايمان عبدالناصر","احمد سليمان","احمد سليمان","احمد سليمان","فاطمه كامل","احمد سليمان","احمد سليمان",null,"احمد سليمان","احمد سليمان","احمد سليمان","احمد سليمان","احمد سليمان","منال جمعه","احمد سليمان","احمد سليمان",null,"احمد سليمان","ايمان عبدالناصر","احمد سليمان","منال جمعه","احمد سليمان","احمد سليمان","احمد سليمان","احمد سليمان",null,null,0,null,12,"مصطفى عبدالحميد","معلم اول","فصل","فصل",24,null,null,null,null,null,null,null,null,null,null,null,null,null,null,null,null,null,null,null,null,null,null,null,null,null,null,null,null,null,null,null,null,null,null,null,null,null,null,null,null,null,null,null,null,null,null,null,null,null,"تحكم منطقى"]
[null,"1/3",null,null,null,null,null,null,null,null,null,null,"حساب","عربي","E","متعدد","عربي","عربي","حساب","متعدد",null,"E","حساب","دين","عربي","عربي","حساب","متعدد","متعدد",null,"حساب","عربي","حساب","العاب","E","متعدد","دين","متعدد",null,"عربي","عربي","عربي","E","حساب","توكاتسو","متعدد","متعدد",null,"حساب","عربي","عربي","متعدد","عربي","متعدد","متعدد","العاب",null,null,"1/3",null,13,null,"معلم اول  ","فصل","فصل",22,null,null,null,null,null,null,null,null,null,null,null,null,null,null,null,null,null,null,null,null,null,null,null,null,null,null,null,null,null,null,null,null,null,null,null,null,null,null,null,null,null,null,null,null,null,null,null,null,null,"تخطيط"]
[null,null,null,null,null,null,null,null,null,null,null,null,"سعيد","سعيد","ايمان عبدالناصر","سعيد","سعيد","سعيد","سعيد","سعيد",null,"ايمان عبدالناصر","سعيد","سعيد","سعيد","سعيد","سعيد","سعيد","سعيد",null,"سعيد","سعيد","سعيد","محمود عبدالهادى","ايمان عبدالناصر","سعيد","سعيد","سعيد",null,"سعيد","سعيد","سعيد","ايمان عبدالناصر","سعيد","محمد ناجى","سعيد","سعيد",null,"سعيد","سعيد","سعيد","سعيد","سعيد","سعيد","سعيد","محمود عبدالهادى",null,null,0,null,14,null,"معلم","E","E",22,null,null,null,null,null,null,null,null,null,null,null,null,null,null,null,null,null,null,null,null,null,null,null,null,null,null,null,null,null,null,null,null,null,null,null,null,null,null,null,null,null,null,null,null,null,null,null,null,null,"تربية دينية"]
[null,"2/3",null,null,null,null,null,null,null,null,null,null,"حساب","عربي","متعدد","عربي","عربي","متعدد","حساب","متعدد",null,"عربي","عربي","متعدد","حساب","دين","E","متعدد","العاب",null,"حساب","متعدد","حساب","E","عربي","عربي","دين","توكاتسو",null,"حساب","متعدد","عربي","عربي","E","حساب","العاب","متعدد",null,"حساب","متعدد","E","عربي","عربي","عربي","متعدد","متعدد",null,null,"2/3",null,15,null,"معلم اول  ","عربي ودين","عربي ودين",22,null,null,null,null,null,null,null,null,null,null,null,null,null,null,null,null,null,null,null,null,null,null,null,null,null,null,null,null,null,null,null,null,null,null,null,null,null,null,null,null,null,null,null,null,null,null,null,null,null,"تربية رياضية"]
[null,null,null,null,null,null,null,null,null,null,null,null,"عطيه","محمود عبدالهادى","عطيه","محمود عبدالهادى","محمود عبدالهادى","عطيه","عطيه","عطيه",null,"محمود عبدالهادى","محمود عبدالهادى","عطيه","عطيه","عطيه","ايمان عبدالناصر","عطيه","عطيه",null,"عطيه","عطيه","عطيه","ايمان عبدالناصر","محمود عبدالهادى","محمود عبدالهادى","عطيه","عطيه",null,"عطيه","عطيه","محمود عبدالهادى","محمود عبدالهادى","ايمان عبدالناصر","عطيه","عطيه","عطيه",null,"عطيه","عطيه","ايمان عبدالناصر","محمود عبدالهادى","محمود عبدالهادى","محمود عبدالهادى","عطيه","عطيه",null,null,0,null,16,null,"معلم اول  ","فصل","فصل",22,null,null,null,null,null,null,null,null,null,null,null,null,null,null,null,null,null,null,null,null,null,null,null,null,null,null,null,null,null,null,null,null,null,null,null,null,null,null,null,null,null,null,null,null,null,null,null,null,null,"تركيبات كهربية"]
[null,"3/3",null,null,null,null,null,null,null,null,null,null,"حساب","متعدد","عربي","حساب","دين","عربي","E","متعدد",null,"حساب","متعدد","عربي","عربي","توكاتسو","متعدد","العاب","متعدد",null,"عربي","عربي","عربي","العاب","حساب","متعدد","حساب","متعدد",null,"عربي","عربي","متعدد","متعدد","حساب","E","حساب","متعدد",null,"عربي","عربي","عربي","متعدد","E","E","حساب","دين",null,null,"3/3",null,17,null,"معلم","علوم","علوم",22,null,null,null,null,null,null,null,null,null,null,null,null,null,null,null,null,null,null,null,null,null,null,null,null,null,null,null,null,null,null,null,null,null,null,null,null,null,null,null,null,null,null,null,null,null,null,null,null,null,"تك التشطيبات"]
[null,null,null,null,null,null,null,null,null,null,null,null,"محمد ناجى","محمد ناجى","محمود عبدالهادى","محمد ناجى","محمد ناجى","محمود عبدالهادى","ايمان عبدالناصر","محمد ناجى",null,"محمد ناجى","محمد ناجى","محمود عبدالهادى","محمود عبدالهادى","محمد ناجى","محمد ناجى","محمد ناجى","محمد ناجى",null,"محمود عبدالهادى","محمود عبدالهادى","محمود عبدالهادى","محمد ناجى","محمد ناجى","محمد ناجى","محمد ناجى","محمد ناجى",null,"محمود عبدالهادى","محمود عبدالهادى","محمد ناجى","محمد ناجى","محمد ناجى","ايمان عبدالناصر","محمد ناجى","محمد ناجى",null,"محمود عبدالهادى","محمود عبدالهادى","محمود عبدالهادى","محمد ناجى","ايمان عبدالناصر","ايمان عبدالناصر","محمد ناجى","محمد ناجى",null,null,0,null,18,null,"معلم اول  ","دراسات","دراسات",24,null,null,null,null,null,null,null,null,null,null,null,null,null,null,null,null,null,null,null,null,null,null,null,null,null,null,null,null,null,null,null,null,null,null,null,null,null,null,null,null,null,null,null,null,null,null,null,null,null,"تك التشكيل"]
[null,null,null,null,null,null,null,null,null,null,null,null,null,null,null,null,null,null,null,null,null,null,null,null,null,null,null,null,null,null,null,null,null,null,null,null,null,null,null,null,null,null,null,null,null,null,null,null,null,null,null,null,null,null,null,null,null,null,0,null,19,null,"معلم اول  ","عربي ودين","عربي ودين",22,null,null,null,null,null,null,null,null,null,null,null,null,null,null,null,null,null,null,null,null,null,null,null,null,null,null,null,null,null,null,null,null,null,null,null,null,null,null,null,null,null,null,null,null,null,null,null,null,null,"تك الخراطة"]
[null,null,null,null,null,null,null,null,null,null,null,null,null,null,null,null,null,null,null,null,null,null,null,null,null,null,null,null,null,null,null,null,null,null,null,null,null,null,null,null,null,null,null,null,null,null,null,null,null,null,null,null,null,null,null,null,null,null,0,null,20,null,"خبير","عربي ودين","عربي ودين",22,null,null,null,null,null,null,null,null,null,null,null,null,null,null,null,null,null,null,null,null,null,null,null,null,null,null,null,null,null,null,null,null,null,null,null,null,null,null,null,null,null,null,null,null,null,null,null,null,null,"تك الفرايز"]
[null,null,null,null,null,null,null,null,null,null,null,null,null,null,null,null,null,null,null,null,null,null,null,null,null,null,null,null,null,null,null,null,null,null,null,null,null,null,null,null,null,null,null,null,null,null,null,null,null,null,null,null,null,null,null,null,null,null,0,null,21,null,"تطوع","تطوع","تطوع",18,null,null,null,null,null,null,null,null,null,null,null,null,null,null,null,null,null,null,null,null,null,null,null,null,null,null,null,null,null,null,null,null,null,null,null,null,null,null,null,null,null,null,null,null,null,null,null,null,null,"تك القشط"]
[null,null,null,null,null,null,null,null,null,null,null,null,null,null,null,null,null,null,null,null,null,null,null,null,null,null,null,null,null,null,null,null,null,null,null,null,null,null,null,null,null,null,null,null,null,null,null,null,null,null,null,null,null,null,null,null,null,null,0,null,22,null,null,"تكنولوجيا","تكنولوجيا",12,null,null,null,null,null,null,null,null,null,null,null,null,null,null,null,null,null,null,null,null,null,null,null,null,null,null,null,null,null,null,null,null,null,null,null,null,null,null,null,null,null,null,null,null,null,null,null,null,null,"تك اللحام"]
[null,null,null,null,null,null,null,null,null,null,null,null,null,null,null,null,null,null,null,null,null,null,null,null,null,null,null,null,null,null,null,null,null,null,null,null,null,null,null,null,null,null,null,null,null,null,null,null,null,null,null,null,null,null,null,null,null,null,0,null,23,null,"خبير / معلم اول","مجال ومكتبة",null,null,null,null,null,null,null,null,null,null,null,null,null,null,null,null,null,null,null,null,null,null,null,null,null,null,null,null,null,null,null,null,null,null,null,null,null,null,null,null,null,null,null,null,null,null,null,null,null,null,null,"تك بناء"]
[null,null,null,null,null,null,null,null,null,null,null,null,null,null,null,null,null,null,null,null,null,null,null,null,null,null,null,null,null,null,null,null,null,null,null,null,null,null,null,null,null,null,null,null,null,null,null,null,null,null,null,null,null,null,null,null,null,null,0,null,24,null,null,null,null,null,null,null,null,null,null,null,null,null,null,null,null,null,null,null,null,null,null,null,null,null,null,null,null,null,null,null,null,null,null,null,null,null,null,null,null,null,null,null,null,null,null,null,null,null,null,null,null,null,null,"تك تبريد"]
[null,null,null,null,null,null,null,null,null,null,null,null,null,null,null,null,null,null,null,null,null,null,null,null,null,null,null,null,null,null,null,null,null,null,null,null,null,null,null,null,null,null,null,null,null,null,null,null,null,null,null,null,null,null,null,null,null,null,0,null,25,null,null,null,null,null,null,null,null,null,null,null,null,null,null,null,null,null,null,null,null,null,null,null,null,null,null,null,null,null,null,null,null,null,null,null,null,null,null,null,null,null,null,null,null,null,null,null,null,null,null,null,null,null,null,"تك عامة"]
[null,null,null,null,null,null,null,null,null,null,null,null,null,null,null,null,null,null,null,null,null,null,null,null,null,null,null,null,null,null,null,null,null,null,null,null,null,null,null,null,null,null,null,null,null,null,null,null,null,null,null,null,null,null,null,null,null,null,0,null,26,null,null,null,null,null,null,null,null,null,null,null,null,null,null,null,null,null,null,null,null,null,null,null,null,null,null,null,null,null,null,null,null,null,null,null,null,null,null,null,null,null,null,null,null,null,null,null,null,null,null,null,null,null,null,"تك كهرباء"]
[null,null,null,null,null,null,null,null,null,null,null,null,null,null,null,null,null,null,null,null,null,null,null,null,null,null,null,null,null,null,null,null,null,null,null,null,null,null,null,null,null,null,null,null,null,null,null,null,null,null,null,null,null,null,null,null,null,null,0,null,27,null,null,null,null,null,null,null,null,null,null,null,null,null,null,null,null,null,null,null,null,null,null,null,null,null,null,null,null,null,null,null,null,null,null,null,null,null,null,null,null,null,null,null,null,null,null,null,null,null,null,null,null,null,null,"حاسب ألي"]
[null,null,null,null,null,null,null,null,null,null,null,null,null,null,null,null,null,null,null,null,null,null,null,null,null,null,null,null,null,null,null,null,null,null,null,null,null,null,null,null,null,null,null,null,null,null,null,null,null,null,null,null,null,null,null,null,null,null,0,null,28,null,null,null,null,null,null,null,null,null,null,null,null,null,null,null,null,null,null,null,null,null,null,null,null,null,null,null,null,null,null,null,null,null,null,null,null,null,null,null,null,null,null,null,null,null,null,null,null,null,null,null,null,null,null,"حساب أنشاءات"]
[null,null,null,null,null,null,null,null,null,null,null,null,null,null,null,null,null,null,null,null,null,null,null,null,null,null,null,null,null,null,null,null,null,null,null,null,null,null,null,null,null,null,null,null,null,null,null,null,null,null,null,null,null,null,null,null,null,null,0,null,29,null,null,null,null,null,null,null,null,null,null,null,null,null,null,null,null,null,null,null,null,null,null,null,null,null,null,null,null,null,null,null,null,null,null,null,null,null,null,null,null,null,null,null,null,null,null,null,null,null,null,null,null,null,null,"خامات"]
[null,null,null,null,null,null,null,null,null,null,null,null,null,null,null,null,null,null,null,null,null,null,null,null,null,null,null,null,null,null,null,null,null,null,null,null,null,null,null,null,null,null,null,null,null,null,null,null,null,null,null,null,null,null,null,null,null,null,0,null,30,null,null,null,null,null,null,null,null,null,null,null,null,null,null,null,null,null,null,null,null,null,null,null,null,null,null,null,null,null,null,null,null,null,null,null,null,null,null,null,null,null,null,null,null,null,null,null,null,null,null,null,null,null,null,"خامات كهربية"]
[null,null,null,null,null,null,null,null,null,null,null,null,null,null,null,null,null,null,null,null,null,null,null,null,null,null,null,null,null,null,null,null,null,null,null,null,null,null,null,null,null,null,null,null,null,null,null,null,null,null,null,null,null,null,null,null,null,null,0,null,31,null,null,null,null,null,null,null,null,null,null,null,null,null,null,null,null,null,null,null,null,null,null,null,null,null,null,null,null,null,null,null,null,null,null,null,null,null,null,null,null,null,null,null,null,null,null,null,null,null,null,null,null,null,null,"دراسات"]
[null,null,null,null,null,null,null,null,null,null,null,null,null,null,null,null,null,null,null,null,null,null,null,null,null,null,null,null,null,null,null,null,null,null,null,null,null,null,null,null,null,null,null,null,null,null,null,null,null,null,null,null,null,null,null,null,null,null,0,null,32,null,null,null,null,null,null,null,null,null,null,null,null,null,null,null,null,null,null,null,null,null,null,null,null,null,null,null,null,null,null,null,null,null,null,null,null,null,null,null,null,null,null,null,null,null,null,null,null,null,null,null,null,null,null,"دوائر الكترونية"]
[null,null,null,null,null,null,null,null,null,null,null,null,null,null,null,null,null,null,null,null,null,null,null,null,null,null,null,null,null,null,null,null,null,null,null,null,null,null,null,null,null,null,null,null,null,null,null,null,null,null,null,null,null,null,null,null,null,null,0,null,33,null,null,null,null,null,null,null,null,null,null,null,null,null,null,null,null,null,null,null,null,null,null,null,null,null,null,null,null,null,null,null,null,null,null,null,null,null,null,null,null,null,null,null,null,null,null,null,null,null,null,null,null,null,null,"رسم فنى"]
[null,null,null,null,null,null,null,null,null,null,null,null,null,null,null,null,null,null,null,null,null,null,null,null,null,null,null,null,null,null,null,null,null,null,null,null,null,null,null,null,null,null,null,null,null,null,null,null,null,null,null,null,null,null,null,null,null,null,0,null,34,null,null,null,null,null,null,null,null,null,null,null,null,null,null,null,null,null,null,null,null,null,null,null,null,null,null,null,null,null,null,null,null,null,null,null,null,null,null,null,null,null,null,null,null,null,null,null,null,null,null,null,null,null,null,"رياضيات"]
[null,null,null,null,null,null,null,null,null,null,null,null,null,null,null,null,null,null,null,null,null,null,null,null,null,null,null,null,null,null,null,null,null,null,null,null,null,null,null,null,null,null,null,null,null,null,null,null,null,null,null,null,null,null,null,null,null,null,0,null,35,null,null,null,null,null,null,null,null,null,null,null,null,null,null,null,null,null,null,null,null,null,null,null,null,null,null,null,null,null,null,null,null,null,null,null,null,null,null,null,null,null,null,null,null,null,null,null,null,null,null,null,null,null,null,"زخارف"]
[null,null,null,null,null,null,null,null,null,null,null,null,null,null,null,null,null,null,null,null,null,null,null,null,null,null,null,null,null,null,null,null,null,null,null,null,null,null,null,null,null,null,null,null,null,null,null,null,null,null,null,null,null,null,null,null,null,null,0,null,36,null,null,null,null,null,null,null,null,null,null,null,null,null,null,null,null,null,null,null,null,null,null,null,null,null,null,null,null,null,null,null,null,null,null,null,null,null,null,null,null,null,null,null,null,null,null,null,null,null,null,null,null,null,null,"شاسية"]
[null,null,null,null,null,null,null,null,null,null,null,null,null,null,null,null,null,null,null,null,null,null,null,null,null,null,null,null,null,null,null,null,null,null,null,null,null,null,null,null,null,null,null,null,null,null,null,null,null,null,null,null,null,null,null,null,null,null,0,null,37,null,null,null,null,null,null,null,null,null,null,null,null,null,null,null,null,null,null,null,null,null,null,null,null,null,null,null,null,null,null,null,null,null,null,null,null,null,null,null,null,null,null,null,null,null,null,null,null,null,null,null,null,null,null,"صيانة واصلاح"]
[null,null,null,null,null,null,null,null,null,null,null,null,null,null,null,null,null,null,null,null,null,null,null,null,null,null,null,null,null,null,null,null,null,null,null,null,null,null,null,null,null,null,null,null,null,null,null,null,null,null,null,null,null,null,null,null,null,null,0,null,38,null,null,null,null,null,null,null,null,null,null,null,null,null,null,null,null,null,null,null,null,null,null,null,null,null,null,null,null,null,null,null,null,null,null,null,null,null,null,null,null,null,null,null,null,null,null,null,null,null,null,null,null,null,null,"علم المواد"]
[null,null,null,null,null,null,null,null,null,null,null,null,null,null,null,null,null,null,null,null,null,null,null,null,null,null,null,null,null,null,null,null,null,null,null,null,null,null,null,null,null,null,null,null,null,null,null,null,null,null,null,null,null,null,null,null,null,null,0,null,39,null,null,null,null,null,null,null,null,null,null,null,null,null,null,null,null,null,null,null,null,null,null,null,null,null,null,null,null,null,null,null,null,null,null,null,null,null,null,null,null,null,null,null,null,null,null,null,null,null,null,null,null,null,null,"عمــــلي"]
[null,null,null,null,null,null,null,null,null,null,null,null,null,null,null,null,null,null,null,null,null,null,null,null,null,null,null,null,null,null,null,null,null,null,null,null,null,null,null,null,null,null,null,null,null,null,null,null,null,null,null,null,null,null,null,null,null,null,0,null,40,null,null,null,null,null,null,null,null,null,null,null,null,null,null,null,null,null,null,null,null,null,null,null,null,null,null,null,null,null,null,null,null,null,null,null,null,null,null,null,null,null,null,null,null,null,null,null,null,null,null,null,null,null,null,"عمليات"]
[null,null,null,null,null,null,null,null,null,null,null,null,null,null,null,null,null,null,null,null,null,null,null,null,null,null,null,null,null,null,null,null,null,null,null,null,null,null,null,null,null,null,null,null,null,null,null,null,null,null,null,null,null,null,null,null,null,null,0,null,41,null,null,null,null,null,null,null,null,null,null,null,null,null,null,null,null,null,null,null,null,null,null,null,null,null,null,null,null,null,null,null,null,null,null,null,null,null,null,null,null,null,null,null,null,null,null,null,null,null,null,null,null,null,null,"فلزات"]
[null,null,null,null,null,null,null,null,null,null,null,null,null,null,null,null,null,null,null,null,null,null,null,null,null,null,null,null,null,null,null,null,null,null,null,null,null,null,null,null,null,null,null,null,null,null,null,null,null,null,null,null,null,null,null,null,null,null,0,null,null,null,null,null,null,null,null,null,null,null,null,null,null,null,null,null,null,null,null,null,null,null,null,null,null,null,null,null,null,null,null,null,null,null,null,null,null,null,null,null,null,null,null,null,null,null,null,null,null,null,null,null,null,null,null,"فلسفة"]
[null,null,null,null,null,null,null,null,null,null,null,null,null,null,null,null,null,null,null,null,null,null,null,null,null,null,null,null,null,null,null,null,null,null,null,null,null,null,null,null,null,null,null,null,null,null,null,null,null,null,null,null,null,null,null,null,null,null,0,null,null,null,null,null,null,null,null,null,null,null,null,null,null,null,null,null,null,null,null,null,null,null,null,null,null,null,null,null,null,null,null,null,null,null,null,null,null,null,null,null,null,null,null,null,null,null,null,null,null,null,null,null,null,null,null,"فيزياء"]
[null,null,null,null,null,null,null,null,null,null,null,null,null,null,null,null,null,null,null,null,null,null,null,null,null,null,null,null,null,null,null,null,null,null,null,null,null,null,null,null,null,null,null,null,null,null,null,null,null,null,null,null,null,null,null,null,null,null,0,null,null,null,null,null,null,null,null,null,null,null,null,null,null,null,null,null,null,null,null,null,null,null,null,null,null,null,null,null,null,null,null,null,null,null,null,null,null,null,null,null,null,null,null,null,null,null,null,null,null,null,null,null,null,null,null,"قياسات كهربية"]
[null,null,null,null,null,null,null,null,null,null,null,null,null,null,null,null,null,null,null,null,null,null,null,null,null,null,null,null,null,null,null,null,null,null,null,null,null,null,null,null,null,null,null,null,null,null,null,null,null,null,null,null,null,null,null,null,null,null,0,null,null,null,null,null,null,null,null,null,null,null,null,null,null,null,null,null,null,null,null,null,null,null,null,null,null,null,null,null,null,null,null,null,null,null,null,null,null,null,null,null,null,null,null,null,null,null,null,null,null,null,null,null,null,null,null,"كهرباء"]
[null,null,null,null,null,null,null,null,null,null,null,null,null,null,null,null,null,null,null,null,null,null,null,null,null,null,null,null,null,null,null,null,null,null,null,null,null,null,null,null,null,null,null,null,null,null,null,null,null,null,null,null,null,null,null,null,null,null,0,null,null,null,null,null,null,null,null,null,null,null,null,null,null,null,null,null,null,null,null,null,null,null,null,null,null,null,null,null,null,null,null,null,null,null,null,null,null,null,null,null,null,null,null,null,null,null,null,null,null,null,null,null,null,null,null,"كيمياء"]
[null,null,null,null,null,null,null,null,null,null,null,null,null,null,null,null,null,null,null,null,null,null,null,null,null,null,null,null,null,null,null,null,null,null,null,null,null,null,null,null,null,null,null,null,null,null,null,null,null,null,null,null,null,null,null,null,null,null,{"$f":"B50","v":0},null,null,null,null,null,null,null,null,null,null,null,null,null,null,null,null,null,null,null,null,null,null,null,null,null,null,null,null,null,null,null,null,null,null,null,null,null,null,null,null,null,null,null,null,null,null,null,null,null,null,null,null,null,null,null,null,"لغة عربية"]
[null,null,null,null,null,null,null,null,null,null,null,null,null,null,null,null,null,null,null,null,null,null,null,null,null,null,null,null,null,null,null,null,null,null,null,null,null,null,null,null,null,null,null,null,null,null,null,null,null,null,null,null,null,null,null,null,null,null,0,null,null,null,null,null,null,null,null,null,null,null,null,null,null,null,null,null,null,null,null,null,null,null,null,null,null,null,null,null,null,null,null,null,null,null,null,null,null,null,null,null,null,null,null,null,null,null,null,null,null,null,null,null,null,null,null,"ماكينات C.N.C"]
[null,null,null,null,null,null,null,null,null,null,null,null,null,null,null,null,null,null,null,null,null,null,null,null,null,null,null,null,null,null,null,null,null,null,null,null,null,null,null,null,null,null,null,null,null,null,null,null,null,null,null,null,null,null,null,null,null,null,{"$f":"B52","v":0},null,null,null,null,null,null,null,null,null,null,null,null,null,null,null,null,null,null,null,null,null,null,null,null,null,null,null,null,null,null,null,null,null,null,null,null,null,null,null,null,null,null,null,null,null,null,null,null,null,null,null,null,null,null,null,null,"مبادئ كهرباء"]
[null,null,null,null,null,null,null,null,null,null,null,null,null,null,null,null,null,null,null,null,null,null,null,null,null,null,null,null,null,null,null,null,null,null,null,null,null,null,null,null,null,null,null,null,null,null,null,null,null,null,null,null,null,null,null,null,null,null,0,null,null,null,null,null,null,null,null,null,null,null,null,null,null,null,null,null,null,null,null,null,null,null,null,null,null,null,null,null,null,null,null,null,null,null,null,null,null,null,null,null,null,null,null,null,null,null,null,null,null,null,null,null,null,null,null,"محركات"]
[null,null,null,null,null,null,null,null,null,null,null,null,null,null,null,null,null,null,null,null,null,null,null,null,null,null,null,null,null,null,null,null,null,null,null,null,null,null,null,null,null,null,null,null,null,null,null,null,null,null,null,null,null,null,null,null,null,null,{"$f":"B54","v":0},null,null,null,null,null,null,null,null,null,null,null,null,null,null,null,null,null,null,null,null,null,null,null,null,null,null,null,null,null,null,null,null,null,null,null,null,null,null,null,null,null,null,null,null,null,null,null,null,null,null,null,null,null,null,null,null,"مساحة"]
[null,null,null,null,null,null,null,null,null,null,null,null,null,null,null,null,null,null,null,null,null,null,null,null,null,null,null,null,null,null,null,null,null,null,null,null,null,null,null,null,null,null,null,null,null,null,null,null,null,null,null,null,null,null,null,null,null,null,0,null,null,null,null,null,null,null,null,null,null,null,null,null,null,null,null,null,null,null,null,null,null,null,null,null,null,null,null,null,null,null,null,null,null,null,null,null,null,null,null,null,null,null,null,null,null,null,null,null,null,null,null,null,null,null,null,"معدات"]
[null,null,null,null,null,null,null,null,null,null,null,null,null,null,null,null,null,null,null,null,null,null,null,null,null,null,null,null,null,null,null,null,null,null,null,null,null,null,null,null,null,null,null,null,null,null,null,null,null,null,null,null,null,null,null,null,null,null,{"$f":"B56","v":0},null,null,null,null,null,null,null,null,null,null,null,null,null,null,null,null,null,null,null,null,null,null,null,null,null,null,null,null,null,null,null,null,null,null,null,null,null,null,null,null,null,null,null,null,null,null,null,null,null,null,null,null,null,null,null,null,"ميكانيكا"]
[null,null,null,null,null,null,null,null,null,null,null,null,null,null,null,null,null,null,null,null,null,null,null,null,null,null,null,null,null,null,null,null,null,null,null,null,null,null,null,null,null,null,null,null,null,null,null,null,null,null,null,null,null,null,null,null,null,null,0,null,null,null,null,null,null,null,null,null,null,null,null,null,null,null,null,null,null,null,null,null,null,null,null,null,null,null,null,null,null,null,null,null,null,null,null,null,null,null,null,null,null,null,null,null,null,null,null,null,null,null,null,null,null,null,null,"نظم"]
[null,null,null,null,null,null,null,null,null,null,null,null,null,null,null,null,null,null,null,null,null,null,null,null,null,null,null,null,null,null,null,null,null,null,null,null,null,null,null,null,null,null,null,null,null,null,null,null,null,null,null,null,null,null,null,null,null,null,{"$f":"B58","v":0},null,null,null,null,null,null,null,null,null,null,null,null,null,null,null,null,null,null,null,null,null,null,null,null,null,null,null,null,null,null,null,null,null,null,null,null,null,null,null,null,null,null,null,null,null,null,null,null,null,null,null,null,null,null,null,null,"هيدروليك "]
[null,null,null,null,null,null,null,null,null,null,null,null,null,null,null,null,null,null,null,null,null,null,null,null,null,null,null,null,null,null,null,null,null,null,null,null,null,null,null,null,null,null,null,null,null,null,null,null,null,null,null,null,null,null,null,null,null,null,0]
[null,null,null,null,null,null,null,null,null,null,null,null,null,null,null,null,null,null,null,null,null,null,null,null,null,null,null,null,null,null,null,null,null,null,null,null,null,null,null,null,null,null,null,null,null,null,null,null,null,null,null,null,null,null,null,null,null,null,{"$f":"B60","v":0}]
[null,null,null,null,null,null,null,null,null,null,null,null,null,null,null,null,null,null,null,null,null,null,null,null,null,null,null,null,null,null,null,null,null,null,null,null,null,null,null,null,null,null,null,null,null,null,null,null,null,null,null,null,null,null,null,null,null,null,0]
[null,null,null,null,null,null,null,null,null,null,null,null,null,null,null,null,null,null,null,null,null,null,null,null,null,null,null,null,null,null,null,null,null,null,null,null,null,null,null,null,null,null,null,null,null,null,null,null,null,null,null,null,null,null,null,null,null,null,{"$f":"B62","v":0}]
[null,null,null,null,null,null,null,null,null,null,null,null,null,null,null,null,null,null,null,null,null,null,null,null,null,null,null,null,null,null,null,null,null,null,null,null,null,null,null,null,null,null,null,null,null,null,null,null,null,null,null,null,null,null,null,null,null,null,0]
[null,null,null,null,null,null,null,null,null,null,null,null,null,null,null,null,null,null,null,null,null,null,null,null,null,null,null,null,null,null,null,null,null,null,null,null,null,null,null,null,null,null,null,null,null,null,null,null,null,null,null,null,null,null,null,null,null,null,0]
[null,null,null,null,null,null,null,null,null,null,null,null,null,null,null,null,null,null,null,null,null,null,null,null,null,null,null,null,null,null,null,null,null,null,null,null,null,null,null,null,null,null,null,null,null,null,null,null,null,null,null,null,null,null,null,null,null,null,0]
[null,null,null,null,null,null,null,null,null,null,null,null,null,null,null,null,null,null,null,null,null,null,null,null,null,null,null,null,null,null,null,null,null,null,null,null,null,null,null,null,null,null,null,null,null,null,null,null,null,null,null,null,null,null,null,null,null,null,0]
[null,null,null,null,null,null,null,null,null,null,null,null,null,null,null,null,null,null,null,null,null,null,null,null,null,null,null,null,null,null,null,null,null,null,null,null,null,null,null,null,null,null,null,null,null,null,null,null,null,null,null,null,null,null,null,null,null,null,0]
[null,null,null,null,null,null,null,null,null,null,null,null,null,null,null,null,null,null,null,null,null,null,null,null,null,null,null,null,null,null,null,null,null,null,null,null,null,null,null,null,null,null,null,null,null,null,null,null,null,null,null,null,null,null,null,null,null,null,0]
[null,null,null,null,null,null,null,null,null,null,null,null,null,null,null,null,null,null,null,null,null,null,null,null,null,null,null,null,null,null,null,null,null,null,null,null,null,null,null,null,null,null,null,null,null,null,null,null,null,null,null,null,null,null,null,null,null,null,0]
[null,null,null,null,null,null,null,null,null,null,null,null,null,null,null,null,null,null,null,null,null,null,null,null,null,null,null,null,null,null,null,null,null,null,null,null,null,null,null,null,null,null,null,null,null,null,null,null,null,null,null,null,null,null,null,null,null,null,0]
[null,null,null,null,null,null,null,null,null,null,null,null,null,null,null,null,null,null,null,null,null,null,null,null,null,null,null,null,null,null,null,null,null,null,null,null,null,null,null,null,null,null,null,null,null,null,null,null,null,null,null,null,null,null,null,null,null,null,0]
[null,null,null,null,null,null,null,null,null,null,null,null,null,null,null,null,null,null,null,null,null,null,null,null,null,null,null,null,null,null,null,null,null,null,null,null,null,null,null,null,null,null,null,null,null,null,null,null,null,null,null,null,null,null,null,null,null,null,0]
[null,null,null,null,null,null,null,null,null,null,null,null,null,null,null,null,null,null,null,null,null,null,null,null,null,null,null,null,null,null,null,null,null,null,null,null,null,null,null,null,null,null,null,null,null,null,null,null,null,null,null,null,null,null,null,null,null,null,0]
[null,null,null,null,null,null,null,null,null,null,null,null,null,null,null,null,null,null,null,null,null,null,null,null,null,null,null,null,null,null,null,null,null,null,null,null,null,null,null,null,null,null,null,null,null,null,null,null,null,null,null,null,null,null,null,null,null,null,0]
[null,null,null,null,null,null,null,null,null,null,null,null,null,null,null,null,null,null,null,null,null,null,null,null,null,null,null,null,null,null,null,null,null,null,null,null,null,null,null,null,null,null,null,null,null,null,null,null,null,null,null,null,null,null,null,null,null,null,0]

{"sheet":"الجدول","index":1,"n_rows":53,"n_cols":16,"rows_kept":53,"cut":false,"hidden":false,"merged":[[4,7,4,8],[21,7,21,8],[38,7,38,8],[17,2,18,2],[7,2,8,2],[9,2,10,2],[11,2,12,2],[13,2,14,2],[15,2,16,2],[49,2,50,2],[51,2,52,2],[24,2,25,2],[41,2,42,2],[43,2,44,2],[45,2,46,2],[47,2,48,2],[34,2,35,2],[32,2,33,2],[30,2,31,2],[28,2,29,2],[26,2,27,2]]}
[null,null,null,null,null,null,null,null,null,null,null,null,null,null,null,10]
[]
[]
[]
[null,null,null,null,null,"جدول الاستاذ/",{"$f":"IFERROR(VLOOKUP($P$1,كشاف!$BI$4:$BJ$150,2,0),\"\")","v":"نورا كامل"},"عدد الحصص",null,{"$f":"SUM($M$11:$M$19)","v":28}]
[]
[null,null,"اليوم","الأولى","الثانية","الثالثة","الرابعة","الخامسة","السادسة","السابعة","الثامنة"]
[null,null,"السبت"]
[]
[null,null,"الأحد","عربي","عربي",null,"عربي","عربي",null,"العاب"]
[null,null,null,"1/2","1/2",null,"2/2","2/2",null,"1/1",null,null,{"$f":"COUNTIF($D$11:$L$11,\"<>\")","v":5}]
[null,null,"الإثنين","عربي","عربي","عربي","عربي","عربي","عربي",null,"توكاتسو"]
[null,null,null,"2/2","2/2","1/2","1/2","2/2","2/2",null,"2/1",null,{"$f":"COUNTIF($D$13:$K$13,\"<>\")","v":7}]
[null,null,"الثلاثاء",null,"عربي","عربي",null,"عربي","عربي"]
[null,null,null,null,"1/2","1/2",null,"2/2","2/2",null,null,null,{"$f":"COUNTIF($D$15:$K$15,\"<>\")","v":4}]
[null,null,"الأربعاء","عربي","عربي","عربي","عربي","عربي","عربي","توكاتسو"]
[null,null,null,"2/2","2/2","1/2","1/2","1/2","1/2","1/1",null,null,{"$f":"COUNTIF($D$17:$K$17,\"<>\")","v":7}]
[null,null,"الخميس","العاب","عربي","عربي","عربي","عربي"]
[null,null,null,"1/1","2/2","2/2","1/2","1/2",null,null,null,null,{"$f":"COUNTIF($D$19:$K$19,\"<>\")","v":5}]
[]
[]
[null,null,null,null,null,"جدول الاستاذ/",{"$f":"IFERROR(VLOOKUP($P$22,كشاف!$BI$4:$BJ$150,2,0),\"\")","v":"محمود عبدالهادى"},"عدد الحصص",null,{"$f":"SUM($M$27:$M$36)","v":26},null,null,null,null,null,{"$f":"P1+1","v":11}]
[]
[null,null,"اليوم","الأولى","الثانية","الثالثة","الرابعة","الخامسة","السادسة","السابعة","الثامنة"]
[null,null,"السبت"]
[]
[null,null,"الأحد",null,"عربي","عربي","عربي","عربي","عربي",null,null,null,{"$f":"COUNTIF($D$28:$L$28,\"<>\")","v":5}]
[null,null,null,null,"2/3","3/3","2/3","2/3","3/3"]
[null,null,"الإثنين","عربي","عربي","عربي","عربي",null,null,null,null,null,{"$f":"COUNTIF($D$29:$K$29,\"<>\")","v":4}]
[null,null,null,"2/3","2/3","3/3","3/3"]
[null,null,"الثلاثاء","عربي","عربي","عربي","العاب","عربي","عربي",null,null,null,{"$f":"COUNTIF($D$31:$K$31,\"<>\")","v":6}]
[null,null,null,"3/3","3/3","3/3","1/3","2/3","2/3"]
[null,null,"الأربعاء","عربي","عربي","عربي","عربي",null,null,null,null,null,{"$f":"COUNTIF($D$33:$K$33,\"<>\")","v":4}]
[null,null,null,"3/3","3/3","2/3","2/3"]
[null,null,"الخميس","عربي","عربي","عربي","عربي","عربي","عربي",null,"العاب",null,{"$f":"COUNTIF($D$35:$K$35,\"<>\")","v":7}]
[null,null,null,"3/3","3/3","3/3","2/3","2/3","2/3",null,"1/3"]
[]
[]
[null,null,null,null,null,"جدول الاستاذ/",{"$f":"IFERROR(VLOOKUP($P$44,كشاف!$BI$4:$BJ$150,2,0),\"\")","v":"مصطفى عبدالحميد"},"عدد الحصص",null,{"$f":"SUM($M$44:$M$53)","v":33}]
[]
[null,null,"اليوم","الأولى","الثانية","الثالثة","الرابعة","الخامسة","السادسة","السابعة","الثامنة"]
[null,null,"السبت"]
[]
[null,null,"الأحد",null,"حساب","متعدد","متعدد","عربي","عربي","حساب","متعدد",null,null,null,null,{"$f":"P22+1","v":12}]
[null,null,null,null,"3/1","3/1","3/1","3/1","3/1","3/1","3/1",null,{"$f":"COUNTIF($D$45:$L$45,\"<>\")","v":7}]
[null,null,"الإثنين","عربي",null,"عربي","عربي","حساب","متعدد","حساب","دين"]
[null,null,null,"3/1",null,"3/1","3/1","3/1","3/1","3/1","3/1",null,{"$f":"COUNTIF($D$47:$K$47,\"<>\")","v":7}]
[null,null,"الثلاثاء","عربي","حساب","عربي","عربي","متعدد","متعدد","حساب","متعدد",null,null,null,"   "]
[null,null,null,"3/1","3/1","3/1","3/1","3/1","3/1","3/1","3/1",null,{"$f":"COUNTIF($D$49:$K$49,\"<>\")","v":8}]
[null,null,"الأربعاء","دين","عربي","عربي","متعدد",null,"حساب","متعدد"]
[null,null,null,"3/1","3/1","3/1","3/1",null,"3/1","3/1",null,null,{"$f":"COUNTIF($D$51:$K$51,\"<>\")","v":6}]
[null,null,"الخميس","عربي","عربي","حساب","متعدد",null,null,"متعدد"]
[null,null,null,"3/1","3/1","3/1","3/1",null,null,"3/1",null,null,{"$f":"COUNTIF($D$53:$K$53,\"<>\")","v":5}]

{"sheet":"استمارة الحصص","index":2,"n_rows":99,"n_cols":28,"rows_kept":99,"cut":false,"hidden":false,"merged":[[95,5,95,6],[94,1,94,6],[61,1,61,6],[35,13,35,17],[52,12,53,12],[52,11,53,11],[52,8,53,8],[52,1,53,1],[38,14,38,18],[37,0,37,19],[38,0,39,0],[38,19,49,19],[40,0,41,0],[42,0,43,0],[36,0,36,2],[44,0,45,0],[69,3,69,6],[36,13,36,17],[36,3,36,7],[52,9,53,10],[38,1,38,3],[55,14,55,15],[54,16,54,19],[55,9,55,10],[98,0,98,2],[98,3,98,6],[50,0,51,10],[68,0,68,1],[68,2,68,8],[68,11,68,12],[68,13,68,19],[69,11,69,12],[69,0,69,2],[67,13,67,17],[56,9,56,10],[92,14,92,15],[71,14,71,18],[95,2,95,3],[98,17,98,19],[69,13,69,17],[63,15,63,19],[96,15,96,19],[50,15,51,19],[52,3,53,3],[52,7,53,7],[52,2,53,2],[52,4,53,4],[62,5,62,6],[3,3,3,7],[3,13,3,17],[19,2,20,2],[19,4,20,4],[19,6,20,6],[19,8,20,8],[19,11,20,11],[19,13,20,13],[29,2,29,3],[27,0,27,19],[21,16,21,19],[24,14,24,15],[29,5,29,6],[7,0,8,0],[9,0,10,0],[19,7,20,7],[19,9,20,10],[17,13,18,14],[32,3,32,6],[30,15,30,19],[30,12,30,14],[38,5,38,8],[32,0,32,2],[21,9,21,10],[22,9,22,10],[23,9,23,10],[24,9,24,10],[28,1,28,6],[25,9,25,10],[35,2,35,10],[55,16,55,19],[54,14,54,15],[52,5,53,5],[52,6,53,6],[52,16,53,19],[54,9,54,10],[52,14,53,15],[34,0,34,6],[36,11,36,12],[35,0,35,1],[35,11,35,12],[34,13,34,17],[52,13,53,13],[52,0,53,0],[50,11,51,12],[48,0,49,0],[50,13,51,14],[46,0,47,0],[0,11,0,19],[1,13,1,17],[33,11,33,19],[19,14,20,15],[21,14,21,15],[22,14,22,15],[23,14,23,15],[22,16,22,19],[2,13,2,17],[17,15,18,19],[2,11,2,12],[3,11,3,12],[23,16,23,19],[24,16,24,19],[25,16,25,19],[32,12,32,14],[32,17,32,19],[25,14,25,15],[26,14,26,15],[32,8,32,11],[26,16,26,19],[29,13,29,19],[56,14,56,15],[57,14,57,15],[58,14,58,15],[59,14,59,15],[2,0,2,1],[3,0,3,2],[19,16,20,19],[11,0,12,0],[13,0,14,0],[15,0,16,0],[5,1,5,3],[5,10,5,12],[5,5,5,8],[5,14,5,18],[19,0,20,0],[19,1,20,1],[19,3,20,3],[19,5,20,5],[19,12,20,12],[4,0,4,19],[5,0,6,0],[5,19,16,19],[17,0,18,10],[17,11,18,12],[85,4,86,4],[88,9,88,10],[88,16,88,19],[62,2,62,3],[85,7,86,7],[1,0,1,8],[92,16,92,19],[79,0,80,0],[71,0,72,0],[60,0,60,19],[63,12,63,14],[65,8,65,11],[65,12,65,14],[65,17,65,19],[81,0,82,0],[83,0,84,10],[65,0,65,2],[73,0,74,0],[75,0,76,0],[77,0,78,0],[70,0,70,19],[85,14,86,15],[67,0,67,6],[65,3,65,6],[87,16,87,19],[96,12,96,14],[90,9,90,10],[85,16,86,19],[87,9,87,10],[98,8,98,11],[98,12,98,14],[16,22,19,22],[21,22,24,22],[83,15,83,18],[83,13,84,14],[58,9,58,10],[58,16,58,19],[59,16,59,19],[85,9,86,10],[83,11,84,12],[93,0,93,19],[85,0,86,0],[85,1,86,1],[85,3,86,3],[85,5,86,5],[85,12,86,12],[90,16,90,19],[91,9,91,10],[62,13,62,19],[95,13,95,19],[71,1,71,3],[90,14,90,15],[91,14,91,15],[91,16,91,19],[71,5,71,8],[38,10,38,12],[71,10,71,12],[89,9,89,10],[89,16,89,19],[85,2,86,2],[56,16,56,19],[57,9,57,10],[57,16,57,19],[71,19,82,19],[85,13,86,13],[66,11,66,19],[87,14,87,15],[88,14,88,15],[89,14,89,15],[85,6,86,6],[85,8,86,8],[85,11,86,11]]}
[null,null,null,null,null,null,null,null,null,null,null,"طلب مكافاة الحصص الزائدة عن النصاب",null,null,null,1,null,null,null,null,"حصص زائدة",5,{"$f":"IF(الجدول!J5>30,\"30\",الجدول!J5)","v":28},null,null,null,"اكتوبر",2022]
[null,null,null,null,null,null,null,null,null,null,null,null,null,"نصاب المعلم",null,null,null,null,null,null,null,"صباحى","مسائى"]
["اسم المدرس /",null,null,null,null,null,null,null,null,null,null,"المادة /"]
["الوظيفة على الكادر  /",null,null,null,null,null,null,null,null,null,null,"التخصص  /"]
["صورة من الجدول الاسبوعى للمدرس"]
["اليوم","فترة صباحية ",null,null,{"$f":"VLOOKUP(الجدول!$P$1,#REF!,7,0)","v":{"$error":"#REF!"}},"حصة",null,null,null,null,"فترة مسائية ",null,null,{"$f":"#REF!","v":{"$error":"#REF!"}},"حصة",null,null,null,null,"تحاط الحصص\nالزائدة عن النصاب\nبدائرة حمراء"]
[null,1,2,3,4,5,6,7,8,null,1,2,3,4,5,6,7,8,9]
["الاحد",{"$f":"INDIRECT(\"الجدول!d\"&10+ROW()-ROW($B$8))","v":"عربي"},{"$f":"INDIRECT(\"الجدول!e\"&10+ROW()-ROW($C$8))","v":"عربي"},{"$f":"INDIRECT(\"الجدول!f\"&10+ROW()-ROW($D$8))","v":0},{"$f":"INDIRECT(\"الجدول!g\"&10+ROW()-ROW($E$8))","v":"عربي"},{"$f":"INDIRECT(\"الجدول!h\"&10+ROW()-ROW($F$8))","v":"عربي"},{"$f":"INDIRECT(\"الجدول!i\"&10+ROW()-ROW($F$8))","v":0},{"$f":"INDIRECT(\"الجدول!j\"&10+ROW()-ROW($F$8))","v":"العاب"},{"$f":"INDIRECT(\"الجدول!k\"&10+ROW()-ROW($F$8))","v":0}]
[null,{"$f":"INDIRECT(\"الجدول!d\"&10+ROW()-ROW($B$8))","v":"1/2"},{"$f":"INDIRECT(\"الجدول!e\"&10+ROW()-ROW($C$8))","v":"1/2"},{"$f":"INDIRECT(\"الجدول!f\"&10+ROW()-ROW($D$8))","v":0},{"$f":"INDIRECT(\"الجدول!g\"&10+ROW()-ROW($E$8))","v":"2/2"},{"$f":"INDIRECT(\"الجدول!h\"&10+ROW()-ROW($F$8))","v":"2/2"},{"$f":"INDIRECT(\"الجدول!i\"&10+ROW()-ROW($F$8))","v":0},{"$f":"INDIRECT(\"الجدول!j\"&10+ROW()-ROW($F$8))","v":"1/1"},{"$f":"INDIRECT(\"الجدول!k\"&10+ROW()-ROW($F$8))","v":0},null,null,null,null,null,null,null,null,null,null,null,null,null,null,null,null,1]
["الإثنين","عربي","عربي","عربي","عربي","عربي","عربي",0,"توكاتسو"]
[null,"2/2","2/2","1/2","1/2","2/2","2/2",0,"2/1",null,null,null,null,null,null,null,null,null,null,null,null,null,null,null,null,2]
["الثلاثاء",0,"عربي","عربي",0,"عربي","عربي",0,0]
[null,0,"1/2","1/2",0,"2/2","2/2",0,0,null,null,null,null,null,null,null,null,null,null,null,null,null,null,null,null,1]
["الأربعاء","عربي","عربي","عربي","عربي","عربي","عربي","توكاتسو",0]
[null,"2/2","2/2","1/2","1/2","1/2","1/2","1/1",0,null,null,null,null,null,null,null,null,null,null,null,null,null,null,null,null,1]
["الخميس","العاب","عربي","عربي","عربي","عربي",0,0,0,null,null,null,null,null,null,null,null,null,null,null,null,"   "]
[null,"1/1","2/2","2/2","1/2","1/2",0,0,0]
["بيان بالحصص التي درست خلال شهر ",null,null,null,null,null,null,null,null,null,null,{"$f":"$AA$1","v":"اكتوبر"},null,"عام",null,{"$f":"$AB$1","v":2022}]
[]
["اليوم","التاريخ","عدد الحصص","التاريخ","عدد الحصص","التاريخ","عدد الحصص","التاريخ","عدد الحصص","التاريخ",null,"عدد الحصص","التاريخ","عدد الحصص","جملة",null,"بيان الاجازات"]
[]
["الاحد"]
["الإثنين"]
["الثلاثاء",null,null,null,null,null,null,null,null,null,null,null,null,null,null,null,{"$f":"IF(كشاف!$CB$8=\"اجازة\",\"اجازة\",\"\")","v":""}]
["الأربعاء",null,null,null,null,null,null,null,null,null,null,null,null,null,null,null,{"$f":"IF(كشاف!$CB$9=\"اجازة\",\"اجازة\",\"\")","v":""}]
["الخميس",null,null,null,null,null,null,null,null,null,null,null,null,null,null,null,{"$f":"IF(كشاف!$CB$10=\"اجازة\",\"اجازة\",\"\")","v":""}]
["الجملة",null,{"$f":"SUM(C22:C26)","v":0},null,{"$f":"SUM(E22:E26)","v":0},null,{"$f":"SUM(G22:G26)","v":0},null,{"$f":"SUM(I22:I26)","v":0},null,null,{"$f":"SUM(L22:L26)","v":0},null,null,{"$f":"SUMPRODUCT(B27:N27)","v":0}]
["إقرار"]
["اقر انا ",{"$f":"C3","v":0},null,null,null,null,null,"     بـان جـملـة الحصص الـتي قـمـت بـتـدريسـها زيـادة عـن نصابي خـلال شـهر "]
[{"$f":"$AA$1","v":"اكتوبر"},"عام",{"$f":"$AB$1","v":2022},2021,"هي ",{"$f":"(O27)","v":0},null,{"$f":"NumberToText(F30,\"حصة لا غير\",\" \")","v":"صفر"},null,null,null,null,null,"واننى لم اقم بتحرير ايه استمارة اخرى عن تلك الفترة"]
[null,null,null,null,null,null,null,null,null,null,null,null,"توقيع المدرس :",null,null,"............................................."]
[null,null,null,null,null,null,null,null,null,null,null,null,null,null,null,null,null,null,null,"يعتمد ,,,,"]
["مدير المدرسة",null,null,"الموجه",null,null,null,null,"الموجه الشامل"]
[null,null,null,null,null,null,null,null,null,null,null,"طلب مكافاة الحصص الزائدة عن النصاب"]
[null,null,null,null,null,null,null,null,null,null,null,null,null,"نصاب المعلم"]
["اسم المدرس /",null,null,null,null,null,null,null,null,null,null,"المادة /"]
["الوظيفة على الكادر  /",null,null,null,null,null,null,null,null,null,null,"التخصص  /"]
["صورة من الجدول الاسبوعى للمدرس"]
["اليوم","فترة صباحية ",null,null,{"$f":"VLOOKUP(الجدول!$P$22,#REF!,7,0)","v":{"$error":"#REF!"}},"حصة",null,null,null,null,"فترة مسائية ",null,null,{"$f":"#REF!","v":{"$error":"#REF!"}},"حصة",null,null,null,null,"تحاط الحصص\nالزائدة عن النصاب\nبدائرة حمراء",null,5,{"$f":"IF(الجدول!J22>30,\"30\",الجدول!J22)","v":26}]
[null,1,2,3,4,5,6,7,8,null,1,2,3,4,5,6,7,8,9,null,null,"صباحى","مسائى"]
["الاحد",{"$f":"INDIRECT(\"الجدول!d\"&27+ROW()-ROW($B$41))","v":0},{"$f":"INDIRECT(\"الجدول!e\"&27+ROW()-ROW($C$41))","v":"عربي"},{"$f":"INDIRECT(\"الجدول!f\"&27+ROW()-ROW($D$41))","v":"عربي"},{"$f":"INDIRECT(\"الجدول!g\"&27+ROW()-ROW($E$41))","v":"عربي"},{"$f":"INDIRECT(\"الجدول!h\"&27+ROW()-ROW($F$41))","v":"عربي"},{"$f":"INDIRECT(\"الجدول!i\"&27+ROW()-ROW($F$41))","v":"عربي"},{"$f":"INDIRECT(\"الجدول!j\"&27+ROW()-ROW($F$41))","v":0},{"$f":"INDIRECT(\"الجدول!k\"&27+ROW()-ROW($F$41))","v":0}]
[null,{"$f":"INDIRECT(\"الجدول!d\"&27+ROW()-ROW($B$41))","v":0},{"$f":"INDIRECT(\"الجدول!e\"&27+ROW()-ROW($C$41))","v":"2/3"},{"$f":"INDIRECT(\"الجدول!f\"&27+ROW()-ROW($D$41))","v":"3/3"},{"$f":"INDIRECT(\"الجدول!g\"&27+ROW()-ROW($E$41))","v":"2/3"},{"$f":"INDIRECT(\"الجدول!h\"&27+ROW()-ROW($F$41))","v":"2/3"},{"$f":"INDIRECT(\"الجدول!i\"&27+ROW()-ROW($F$41))","v":"3/3"},{"$f":"INDIRECT(\"الجدول!j\"&27+ROW()-ROW($F$41))","v":0},{"$f":"INDIRECT(\"الجدول!k\"&27+ROW()-ROW($F$41))","v":0},null,null,null,null,null,null,null,null,null,null,null,null,null,null,null,null,2]
["الإثنين","عربي","عربي","عربي","عربي",0,0,0,0]
[null,"2/3","2/3","3/3","3/3",0,0,0,0]
["الثلاثاء","عربي","عربي","عربي","العاب","عربي","عربي",0,0]
[null,"3/3","3/3","3/3","1/3","2/3","2/3",0,0,null,null,null,null,null,null,null,null,null,null,null,null,null,null,null,null,1]
["الأربعاء","عربي","عربي","عربي","عربي",0,0,0,0]
[null,"3/3","3/3","2/3","2/3",0,0,0,0]
["الخميس","عربي","عربي","عربي","عربي","عربي","عربي",0,"العاب"]
[null,"3/3","3/3","3/3","2/3","2/3","2/3",0,"1/3",null,null,null,null,null,null,null,null,null,null,null,null,null,null,null,null,2]
["بيان بالحصص التي درست خلال شهر ",null,null,null,null,null,null,null,null,null,null,{"$f":"$AA$1","v":"اكتوبر"},null,"عام",null,{"$f":"$AB$1","v":2022}]
[]
["اليوم","التاريخ","عدد الحصص","التاريخ","عدد الحصص","التاريخ","عدد الحصص","التاريخ","عدد الحصص","التاريخ",null,"عدد الحصص","التاريخ","عدد الحصص","جملة",null,"بيان الاجازات"]
[]
["الاحد"]
["الإثنين"]
["الثلاثاء",null,null,null,null,null,null,null,null,null,null,null,null,null,null,null,{"$f":"IF(كشاف!$CB$8=\"اجازة\",\"اجازة\",\"\")","v":""}]
["الأربعاء",null,null,null,null,null,null,null,null,null,null,null,null,null,null,null,{"$f":"IF(كشاف!$CB$9=\"اجازة\",\"اجازة\",\"\")","v":""}]
["الخميس",null,null,null,null,null,null,null,null,null,null,null,null,null,null,null,{"$f":"IF(كشاف!$CB$10=\"اجازة\",\"اجازة\",\"\")","v":""}]
["الجملة",null,{"$f":"SUM(C55:C59)","v":0},null,{"$f":"SUM(E55:E59)","v":0},null,{"$f":"SUM(G55:G59)","v":0},null,{"$f":"SUM(I55:I59)","v":0},null,null,{"$f":"SUM(L55:L59)","v":0},null,null,{"$f":"SUMPRODUCT(B60:N60)","v":0}]
["إقرار"]
["اقر انا ",{"$f":"C36","v":0},null,null,null,null,null,"     بـان جـملـة الحصص الـتي قـمـت بـتـدريسـها زيـادة عـن نصابي خـلال شـهر "]
[{"$f":"$AA$1","v":"اكتوبر"},"عام",{"$f":"$AB$1","v":2022},2021,"هي ",{"$f":"(O60)","v":0},null,{"$f":"NumberToText(F63,\"حصة لا غير\",\" \")","v":"صفر"},null,null,null,null,null,"واننى لم اقم بتحرير ايه استمارة اخرى عن تلك الفترة"]
[null,null,null,null,null,null,null,null,null,null,null,null,"توقيع المدرس :",null,null,"............................................."]
[null,null,null,null,null,null,null,null,null,null,null,null,null,null,null,null,null,null,null,"يعتمد ,,,,"]
["مدير المدرسة",null,null,"الموجه",null,null,null,null,"الموجه الشامل"]
[null,null,null,null,null,null,null,null,null,null,null,"طلب مكافاة الحصص الزائدة عن النصاب"]
[null,null,null,null,null,null,null,null,null,null,null,null,null,"نصاب المعلم"]
["اسم المدرس /",null,null,null,null,null,null,null,null,null,null,"المادة /"]
["الوظيفة على الكادر  /",null,null,null,null,null,null,null,null,null,null,"التخصص  /"]
["صورة من الجدول الاسبوعى للمدرس"]
["اليوم","فترة صباحية ",null,null,{"$f":"الجدول!J39","v":33},"حصة",null,null,null,null,"فترة مسائية ",null,null,{"$f":"#REF!","v":{"$error":"#REF!"}},"حصة",null,null,null,null,"تحاط الحصص\nالزائدة عن النصاب\nبدائرة حمراء",null,{"$f":"W72-T68","v":30},{"$f":"IF(الجدول!J39>30,\"30\",الجدول!J39)","v":"30"}]
[null,1,2,3,4,5,6,7,8,null,1,2,3,4,5,6,7,8,9,null,null,"صباحى","مسائى"]
["الاحد",{"$f":"INDIRECT(\"الجدول!d\"&44+ROW()-ROW($B$74))","v":0},{"$f":"INDIRECT(\"الجدول!e\"&44+ROW()-ROW($C$74))","v":"حساب"},{"$f":"INDIRECT(\"الجدول!f\"&44+ROW()-ROW($D$74))","v":"متعدد"},{"$f":"INDIRECT(\"الجدول!g\"&44+ROW()-ROW($E$74))","v":"متعدد"},{"$f":"INDIRECT(\"الجدول!h\"&44+ROW()-ROW($F$74))","v":"عربي"},{"$f":"INDIRECT(\"الجدول!i\"&44+ROW()-ROW($G$74))","v":"عربي"},{"$f":"INDIRECT(\"الجدول!j\"&44+ROW()-ROW($H$74))","v":"حساب"},{"$f":"INDIRECT(\"الجدول!k\"&44+ROW()-ROW($I$74))","v":"متعدد"}]
[null,{"$f":"INDIRECT(\"الجدول!d\"&44+ROW()-ROW($B$74))","v":0},{"$f":"INDIRECT(\"الجدول!e\"&44+ROW()-ROW($C$74))","v":"3/1"},{"$f":"INDIRECT(\"الجدول!f\"&44+ROW()-ROW($D$74))","v":"3/1"},{"$f":"INDIRECT(\"الجدول!g\"&44+ROW()-ROW($E$74))","v":"3/1"},{"$f":"INDIRECT(\"الجدول!h\"&44+ROW()-ROW($F$74))","v":"3/1"},{"$f":"INDIRECT(\"الجدول!i\"&44+ROW()-ROW($G$74))","v":"3/1"},{"$f":"INDIRECT(\"الجدول!j\"&44+ROW()-ROW($H$74))","v":"3/1"},{"$f":"INDIRECT(\"الجدول!k\"&44+ROW()-ROW($I$74))","v":"3/1"}]
["الإثنين","عربي",0,"عربي","عربي","حساب","متعدد","حساب","دين"]
[null,"3/1",0,"3/1","3/1","3/1","3/1","3/1","3/1"]
["الثلاثاء","عربي","حساب","عربي","عربي","متعدد","متعدد","حساب","متعدد"]
[null,"3/1","3/1","3/1","3/1","3/1","3/1","3/1","3/1"]
["الأربعاء","دين","عربي","عربي","متعدد",0,"حساب","متعدد",0]
[null,"3/1","3/1","3/1","3/1",0,"3/1","3/1",0]
["الخميس","عربي","عربي","حساب","متعدد",0,0,"متعدد",0]
[null,"3/1","3/1","3/1","3/1",0,0,"3/1",0]
["بيان بالحصص التي درست خلال شهر ",null,null,null,null,null,null,null,null,null,null,{"$f":"$AA$1","v":"اكتوبر"},null,"عام",null,2022]
[]
["اليوم","التاريخ","عدد الحصص","التاريخ","عدد الحصص","التاريخ","عدد الحصص","التاريخ","عدد الحصص","التاريخ",null,"عدد الحصص","التاريخ","عدد الحصص","جملة",null,"بيان الاجازات"]
[]
["الاحد"]
["الإثنين"]
["الثلاثاء",null,null,null,null,null,null,null,null,null,null,null,null,null,null,null,{"$f":"IF(كشاف!$CB$8=\"اجازة\",\"اجازة\",\"\")","v":""}]
["الأربعاء",null,null,null,null,null,null,null,null,null,null,null,null,null,null,null,{"$f":"IF(كشاف!$CB$9=\"اجازة\",\"اجازة\",\"\")","v":""}]
["الخميس",null,null,null,null,null,null,null,null,null,null,null,null,null,null,null,{"$f":"IF(كشاف!$CB$10=\"اجازة\",\"اجازة\",\"\")","v":""}]
["الجملة",null,{"$f":"SUM(C88:C92)","v":0},null,{"$f":"SUM(E88:E92)","v":0},null,{"$f":"SUM(G88:G92)","v":0},null,{"$f":"SUM(I88:I92)","v":0},null,null,{"$f":"SUM(L88:L92)","v":0},null,null,{"$f":"SUMPRODUCT(B93:N93)","v":0}]
["إقرار"]
["اقر انا ",{"$f":"C69","v":0},null,null,null,null,null,"     بـان جـملـة الحصص الـتي قـمـت بـتـدريسـها زيـادة عـن نصابي خـلال شـهر "]
[{"$f":"$AA$1","v":"اكتوبر"},"عام",{"$f":"$AB$1","v":2022},2021,"هي ",{"$f":"(O93)","v":0},null,{"$f":"NumberToText(F96,\"حصة لا غير\",\" \")","v":"صفر"},null,null,null,null,null,"واننى لم اقم بتحرير ايه استمارة اخرى عن تلك الفترة"]
[null,null,null,null,null,null,null,null,null,null,null,null,"توقيع المدرس :",null,null,"............................................."]
[null,null,null,null,null,null,null,null,null,null,null,null,null,null,null,null,null,null,null,"يعتمد ,,,,"]
["مدير المدرسة",null,null,"الموجه",null,null,null,null,"الموجه الشامل"]